2CCN - Level 2 Cost Centre Name,,9CCN - Level 9 Cost Centre Name,9CCC - Level 9 Cost Centre Code,9AN - Level 9 Account Name,9AC - Level 9 Account Code,Date posted,Date of transaction,Merchant Name,Merchant City,Merchant State,Merchant Zip Code,Originating Account Name,Originating Account Number,MCC/SIC Code,MCC Description,Original Amount,Currency,Conversion Rate,Billed Amount,Debit Credit,Reference Number,Statement Cycle,Account Name
Gloucester City Council,23UE,Museum of Gloucester,MU002,Catering Provisions,3103,08/03/2017,07/03/2017,ASDA SUPERSTORE,GLOUCESTER,GBR,GL1 1DS,REDACTED,556*********2362,5411,"GROCERY STORES, SUPERMARKETS",5.94,Pound Sterling (826),1.000000000,5.94,Debit,45377757067000239785285,02/04/2017,GLOUCESTER CC
Gloucester City Council,23UE,Museum of Gloucester,MU002,General Supplies/Materials,3025,10/03/2017,09/03/2017,POUNDLAND LTD 1167,GLOUCESTER,,GL1 1XH,REDACTED,556*********2362,5310,DISCOUNT STORES,3.5,Pound Sterling (826),1.000000000,3.5,Debit,05230657069310076171379,02/04/2017,GLOUCESTER CC
Gloucester City Council,23UE,Museum of Gloucester,MU002,Catering Provisions,3103,15/03/2017,14/03/2017,ASDA SUPERSTORE,GLOUCESTER,GBR,GL1 1DS,REDACTED,556*********2362,5411,"GROCERY STORES, SUPERMARKETS",3.98,Pound Sterling (826),1.000000000,3.98,Debit,45377757074050254395818,02/04/2017,GLOUCESTER CC
Gloucester City Council,23UE,Gloucester Life Museum,MU005,Catering Provisions,3103,22/03/2017,21/03/2017,ASDA SUPERSTORE,GLOUCESTER,GBR,GL1 1DS,REDACTED,556*********2362,5411,"GROCERY STORES, SUPERMARKETS",28.31,Pound Sterling (826),1.000000000,28.31,Debit,45377757081000265372570,02/04/2017,GLOUCESTER CC
Gloucester City Council,23UE,Museum of Gloucester,MU002,Catering Provisions,3103,24/03/2017,23/03/2017,ASDA SUPERSTORE,GLOUCESTER,GBR,GL1 1DS,REDACTED,556*********2362,5411,"GROCERY STORES, SUPERMARKETS",47.34,Pound Sterling (826),1.000000000,47.34,Debit,45377757083020227851774,02/04/2017,GLOUCESTER CC
Gloucester City Council,23UE,Gloucester Life Museum,MU005,Catering Provisions,3103,29/03/2017,28/03/2017,ASDA SUPERSTORE,GLOUCESTER,GBR,GL1 1DS,REDACTED,556*********2362,5411,"GROCERY STORES, SUPERMARKETS",27.18,Pound Sterling (826),1.000000000,27.18,Debit,45377757088050251081555,02/04/2017,GLOUCESTER CC
Gloucester City Council,23UE,Gloucester Life Museum,MU005,Catering Provisions,3103,31/03/2017,30/03/2017,ASDA SUPERSTORE,GLOUCESTER,GBR,GL1 1DS,REDACTED,556*********2362,5411,"GROCERY STORES, SUPERMARKETS",9.05,Pound Sterling (826),1.000000000,9.05,Debit,45377757090070227064788,02/04/2017,GLOUCESTER CC
Gloucester City Council,23UE,Robinswood Hill Trading Account,EP004,Vehicle Repairs and Maintenance,2103,28/03/2017,24/03/2017,WWW.BIGTYRES.CO.UK,NOTTINGHAM,,NG3 4GN,REDACTED,556*********6734,5532,AUTOMOTIVE TIRE STORES,165.6,Pound Sterling (826),1.000000000,165.6,Debit,55203347086029000023705,02/04/2017,GLOUCESTER CC
Gloucester City Council,23UE,Tourist Information Centre,TI002,Operative Clothing Allowances,0502,23/03/2017,22/03/2017,KWINTET UK LIMITED,ACCRINGTON,,BB5 5YE,REDACTED,556*********4786,5631,WOMEN'S ACCESSORY AND SPECIALITY SHOPS,151.15,Pound Sterling (826),1.000000000,151.15,Debit,55504437081302386507082,02/04/2017,GLOUCESTER CC
Gloucester City Council,23UE,Members Support,DS002,Members Courses & Conferences,3607,14/03/2017,13/03/2017,EB *SEMINAR GIVING EFF,801-413-7200,IRL,DUBLIN 8,REDACTED,556*********3029,7399,BUSINESS SERVICES NOT ELSEWHERE CLASSIFIED,211.74,Pound Sterling (826),1.000000000,211.74,Debit,15276327073000223295134,02/04/2017,GLOUCESTER CC
Gloucester City Council,23UE,Homelessness,HS002,B&B Payments,1303,03/03/2017,02/03/2017,TRAVELODGE GB0000,THAME,,OX9 3AT,REDACTED,556*********4774,3615,TRAVELODGE,681,Pound Sterling (826),1.000000000,681,Debit,55504437061298115673647,02/04/2017,GLOUCESTER CC
Gloucester City Council,23UE,Homelessness,HS002,B&B Payments,1303,03/03/2017,02/03/2017,TRAVELODGE GB0000,THAME,,OX9 3AT,REDACTED,556*********4774,3615,TRAVELODGE,434,Pound Sterling (826),1.000000000,434,Debit,55504437061298115670338,02/04/2017,GLOUCESTER CC
Gloucester City Council,23UE,Homelessness,HS002,B&B Payments,1303,07/03/2017,06/03/2017,TRAVELODGE GB0000,THAME,,OX9 3AT,REDACTED,556*********4774,3615,TRAVELODGE,462,Pound Sterling (826),1.000000000,462,Debit,55504437065298147237540,02/04/2017,GLOUCESTER CC
Gloucester City Council,23UE,Homelessness,HS002,B&B Payments,1303,07/03/2017,06/03/2017,TRAVELODGE GB0000,THAME,,OX9 3AT,REDACTED,556*********4774,3615,TRAVELODGE,567,Pound Sterling (826),1.000000000,567,Debit,55504437065298147234984,02/04/2017,GLOUCESTER CC
Gloucester City Council,23UE,Homelessness,HS002,B&B Payments,1303,07/03/2017,06/03/2017,TRAVELODGE GB0000,THAME,,OX9 3AT,REDACTED,556*********4774,3615,TRAVELODGE,567,Pound Sterling (826),1.000000000,567,Debit,55504437065298147255161,02/04/2017,GLOUCESTER CC
Gloucester City Council,23UE,Homelessness,HS002,B&B Payments,1303,09/03/2017,08/03/2017,TRAVELODGE GB0000,THAME,,OX9 3AT,REDACTED,556*********4774,3615,TRAVELODGE,345,Pound Sterling (826),1.000000000,345,Debit,55504437067298162721921,02/04/2017,GLOUCESTER CC
Gloucester City Council,23UE,Homelessness,HS002,Equipment and Furniture,3001,13/03/2017,10/03/2017,ARGOS RETAIL GROUP,INTERNET,,MK9 2NW,REDACTED,556*********4774,5310,DISCOUNT STORES,36.99,Pound Sterling (826),1.000000000,36.99,Debit,05230657071680070969499,02/04/2017,GLOUCESTER CC
Gloucester City Council,23UE,Homelessness,HS002,B&B Payments,1303,16/03/2017,15/03/2017,TRAVELODGE GB0000,THAME,,OX9 3AT,REDACTED,556*********4774,3615,TRAVELODGE,-281,Pound Sterling (826),1.000000000,-281,Credit,55504437074298117276634,02/04/2017,GLOUCESTER CC
Gloucester City Council,23UE,Homelessness,HS002,B&B Payments,1303,20/03/2017,17/03/2017,TRAVELODGE GB0000,THAME,,OX9 3AT,REDACTED,556*********4774,3615,TRAVELODGE,292,Pound Sterling (826),1.000000000,292,Debit,55504437076298133257749,02/04/2017,GLOUCESTER CC
Gloucester City Council,23UE,Docks Complex - Services,AM006,Hospitality & Refreshments,3104,03/03/2017,02/03/2017,SAINSBURYS 2221,GLOUCESTER,GBR,GL2 5SA,REDACTED,556*********1053,5411,"GROCERY STORES, SUPERMARKETS",25.05,Pound Sterling (826),1.000000000,25.05,Debit,25425157062070116739566,02/04/2017,GLOUCESTER CC
Gloucester City Council,23UE,Docks Complex - Services,AM006,Hospitality & Refreshments,3104,03/03/2017,02/03/2017,MCOLLS,GLOUCESTERSHI,GBR,GL1 2DN,REDACTED,556*********1053,5499,"MISC FOOD STORES-SPECIALITY,CONVENIENCE,MARKETS,VENDING MACHINES",3,Pound Sterling (826),1.000000000,3,Debit,25377757062070143510464,02/04/2017,GLOUCESTER CC
Gloucester City Council,23UE,Docks Complex - Services,AM006,Hospitality & Refreshments,3104,13/03/2017,10/03/2017,MCOLLS,GLOUCESTERSHI,GBR,GL1 2DN,REDACTED,556*********1053,5499,"MISC FOOD STORES-SPECIALITY,CONVENIENCE,MARKETS,VENDING MACHINES",4.2,Pound Sterling (826),1.000000000,4.2,Debit,35377757070030154373896,02/04/2017,GLOUCESTER CC
Gloucester City Council,23UE,Vehicles,CT002,Vehicle Repairs and Maintenance,2103,13/03/2017,10/03/2017,HALFORDS 0749,GLOUCESTER,GBR,GL4 3EA,REDACTED,556*********1053,5940,BICYCLE SHOPS-SALES AND SERVICE,8.49,Pound Sterling (826),1.000000000,8.49,Debit,35377757070030139634651,02/04/2017,GLOUCESTER CC
Gloucester City Council,23UE,Managing Director & Directors,MT001,Equipment and Furniture,3001,13/03/2017,10/03/2017,B & Q 1179,GLOUCESTER,,GL1 2SG,REDACTED,556*********1053,5211,LUMBER AND BUILDING MATERIALS STORES,106,Pound Sterling (826),1.000000000,106,Debit,05230657070140076573713,02/04/2017,GLOUCESTER CC
Gloucester City Council,23UE,Docks Complex - Services,AM006,Hospitality & Refreshments,3104,24/03/2017,23/03/2017,MCOLLS,GLOUCESTERSHI,GBR,GL1 2DN,REDACTED,556*********1053,5499,"MISC FOOD STORES-SPECIALITY,CONVENIENCE,MARKETS,VENDING MACHINES",3,Pound Sterling (826),1.000000000,3,Debit,35377757083020204195626,02/04/2017,GLOUCESTER CC
Gloucester City Council,23UE,Docks Complex - Services,AM006,Hospitality & Refreshments,3104,28/03/2017,27/03/2017,SAINSBURYS 2221,GLOUCESTER,GBR,GL2 5SA,REDACTED,556*********1053,5411,"GROCERY STORES, SUPERMARKETS",29.2,Pound Sterling (826),1.000000000,29.2,Debit,25425157087040097054039,02/04/2017,GLOUCESTER CC
Gloucester City Council,23UE,Museum of Gloucester,MU002,Advertising & Publicity,3404,08/03/2017,07/03/2017,HOOTSUITE MEDIA INC.,778-588-9767,CA,94108,REDACTED,556*********5775,7399,BUSINESS SERVICES NOT ELSEWHERE CLASSIFIED,100.66,Pound Sterling (826),1.000000000,100.66,Debit,55425447066000952105810,02/04/2017,GLOUCESTER CC
Gloucester City Council,23UE,Museum of Gloucester,MU002,Public Transport - Staff,2402,15/03/2017,14/03/2017,GWR WEBSALES,SWINDON,,SN1 1HL,REDACTED,556*********5775,4112,PASSENGER RAILWAYS,47,Pound Sterling (826),1.000000000,47,Debit,55504437073160328061836,02/04/2017,GLOUCESTER CC
Gloucester City Council,23UE,Museum of Gloucester,MU002,Public Transport - Staff,2402,16/03/2017,15/03/2017,NATIONAL EXPRESS LIMIT,BIRMINGHAM,,B5 6DD,REDACTED,556*********5775,4131,"BUS LINES, CHARTERS, TOUR BUSES",11,Pound Sterling (826),1.000000000,11,Debit,05206657075010800177757,02/04/2017,GLOUCESTER CC
Gloucester City Council,23UE,Museum of Gloucester,MU002,External Training Course Fees,0550,16/03/2017,14/03/2017,PREMIER INN 44037050,LONDON CHISWI,,W4 2TH,REDACTED,556*********5775,3811,PREMIER INN,102.5,Pound Sterling (826),1.000000000,102.5,Debit,55541967075529000153302,02/04/2017,GLOUCESTER CC
Gloucester City Council,23UE,Museum of Gloucester,MU002,Exhibition Costs,3021,20/03/2017,17/03/2017,VISTAPR*VistaPrint.uk,080-0028825,NLD,LW 5928,REDACTED,556*********5775,2741,MISCELLANEOUS PUBLISHING & PRINTING,77.67,Pound Sterling (826),1.000000000,77.67,Debit,55204727076000928669477,02/04/2017,GLOUCESTER CC
Gloucester City Council,23UE,Museum of Gloucester,MU002,Equipment and Furniture,3001,23/03/2017,22/03/2017,WWW.TROPHYSTORE.CO.UK,INTERNET,GBR,B79 7TA,REDACTED,556*********5775,5947,"GIFT, CARD, NOVELTY, AND SOUVENIR SHOPS",16.47,Pound Sterling (826),1.000000000,16.47,Debit,25425157082010099686976,02/04/2017,GLOUCESTER CC
Gloucester City Council,23UE,Guildhall Bar & Caf�,GH005,Catering Provisions,3103,06/03/2017,03/03/2017,MARKS&SPENCER PLC,GLOUCESTER,GBR,GL1 1PH,REDACTED,556*********5661,5411,"GROCERY STORES, SUPERMARKETS",2.85,Pound Sterling (826),1.000000000,2.85,Debit,45377757063080316739540,02/04/2017,GLOUCESTER CC
Gloucester City Council,23UE,Guildhall Bar & Caf�,GH005,Catering Provisions,3103,06/03/2017,03/03/2017,B&M RETAIL LTD,HS GLOUCESTER,,GL1 2DH,REDACTED,556*********5661,5310,DISCOUNT STORES,6.02,Pound Sterling (826),1.000000000,6.02,Debit,05230657063790077378840,02/04/2017,GLOUCESTER CC
Gloucester City Council,23UE,Guildhall Bar & Caf�,GH005,Catering Provisions,3103,06/03/2017,04/03/2017,TESCO STORES (6819),GLOUCESTER,GBR,GL1 1TP,REDACTED,556*********5661,5411,"GROCERY STORES, SUPERMARKETS",1.65,Pound Sterling (826),1.000000000,1.65,Debit,25377757064080770798496,02/04/2017,GLOUCESTER CC
Gloucester City Council,23UE,Guildhall Bar & Caf�,GH005,Catering Provisions,3103,06/03/2017,04/03/2017,TESCO STORES 6819,GLOUCESTER,GBR,GL1 1TP,REDACTED,556*********5661,5411,"GROCERY STORES, SUPERMARKETS",4.2,Pound Sterling (826),1.000000000,4.2,Debit,25377757064080770792283,02/04/2017,GLOUCESTER CC
Gloucester City Council,23UE,Guildhall Bar & Caf�,GH005,Catering Provisions,3103,10/03/2017,09/03/2017,ASDA SUPERSTORE,GLOUCESTER,GBR,GL1 1DS,REDACTED,556*********5661,5411,"GROCERY STORES, SUPERMARKETS",42.21,Pound Sterling (826),1.000000000,42.21,Debit,35377757069020155466222,02/04/2017,GLOUCESTER CC
Gloucester City Council,23UE,Guildhall Bar & Caf�,GH005,Catering Provisions,3103,15/03/2017,14/03/2017,ASDA SUPERSTORE,GLOUCESTER,GBR,GL1 1DS,REDACTED,556*********5661,5411,"GROCERY STORES, SUPERMARKETS",16.18,Pound Sterling (826),1.000000000,16.18,Debit,45377757074050254435929,02/04/2017,GLOUCESTER CC
Gloucester City Council,23UE,Guildhall Bar & Caf�,GH005,Catering Provisions,3103,20/03/2017,17/03/2017,MARKS&SPENCER PLC,GLOUCESTER,GBR,GL1 1PH,REDACTED,556*********5661,5411,"GROCERY STORES, SUPERMARKETS",16.32,Pound Sterling (826),1.000000000,16.32,Debit,45377757077080268990996,02/04/2017,GLOUCESTER CC
Gloucester City Council,23UE,Guildhall Bar & Caf�,GH005,Catering Provisions,3103,21/03/2017,20/03/2017,ASDA SUPERSTORE,GLOUCESTER,GBR,GL1 1DS,REDACTED,556*********5661,5411,"GROCERY STORES, SUPERMARKETS",18.06,Pound Sterling (826),1.000000000,18.06,Debit,45377757080090229363774,02/04/2017,GLOUCESTER CC
Gloucester City Council,23UE,Guildhall Bar & Caf�,GH005,Catering Provisions,3103,22/03/2017,21/03/2017,BOOKER LIMITED GLOUCES,GLOUCESTER,GBR,GL4 3RT,REDACTED,556*********5661,5811,CATERERS,18.43,Pound Sterling (826),1.000000000,18.43,Debit,55184227080890810045326,02/04/2017,GLOUCESTER CC
Gloucester City Council,23UE,Guildhall Bar & Caf�,GH005,Catering Provisions,3103,23/03/2017,22/03/2017,ALDI,GLOUCESTER,,GL1 5BJ,REDACTED,556*********5661,5411,"GROCERY STORES, SUPERMARKETS",21.19,Pound Sterling (826),1.000000000,21.19,Debit,55541967082495000648173,02/04/2017,GLOUCESTER CC
Gloucester City Council,23UE,Blackfriars,GH010,Catering Provisions,3103,24/03/2017,23/03/2017,ASDA SUPERSTORE,GLOUCESTER,GBR,GL1 1DS,REDACTED,556*********5661,5411,"GROCERY STORES, SUPERMARKETS",10,Pound Sterling (826),1.000000000,10,Debit,45377757083020227847467,02/04/2017,GLOUCESTER CC
Gloucester City Council,23UE,Blackfriars,GH010,Catering Provisions,3103,24/03/2017,23/03/2017,WILKO RETAIL LIMIT,GLOUCESTER 14,,GL1 1SL,REDACTED,556*********5661,5722,HOUSEHOLD APPLIANCE STORES,9,Pound Sterling (826),1.000000000,9,Debit,05230657083060070681228,02/04/2017,GLOUCESTER CC
Gloucester City Council,23UE,Blackfriars,GH010,Catering Provisions,3103,24/03/2017,23/03/2017,BOOKER LIMITED GLOUCES,GLOUCESTER,GBR,GL4 3RT,REDACTED,556*********5661,5811,CATERERS,15.15,Pound Sterling (826),1.000000000,15.15,Debit,55184227082890832016352,02/04/2017,GLOUCESTER CC
Gloucester City Council,23UE,Blackfriars,GH010,Catering Provisions,3103,27/03/2017,24/03/2017,ALDI,GLOUCESTER,,GL2 4QL,REDACTED,556*********5661,5411,"GROCERY STORES, SUPERMARKETS",34.93,Pound Sterling (826),1.000000000,34.93,Debit,55541967084495000158957,02/04/2017,GLOUCESTER CC
Gloucester City Council,23UE,Guildhall Bar & Caf�,GH005,Catering Provisions,3103,30/03/2017,29/03/2017,ICELAND,GLOUCESTER,GBR,GL1 1SA,REDACTED,556*********5661,5411,"GROCERY STORES, SUPERMARKETS",6.25,Pound Sterling (826),1.000000000,6.25,Debit,35377757089060143748501,02/04/2017,GLOUCESTER CC
Gloucester City Council,23UE,Members Support,DS002,Members Travel Expenses,3609,03/03/2017,02/03/2017,Trainline,London,GBR,1445,REDACTED,556*********3822,4112,PASSENGER RAILWAYS,117.66,Pound Sterling (826),1.000000000,117.66,Debit,85130087061708642034925,02/04/2017,GLOUCESTER CC
Gloucester City Council,23UE,Members Support,DS002,Members Travel Expenses,3609,09/03/2017,08/03/2017,Trainline,London,GBR,1445,REDACTED,556*********3822,4112,PASSENGER RAILWAYS,177.48,Pound Sterling (826),1.000000000,177.48,Debit,85130087067709835627768,02/04/2017,GLOUCESTER CC
Gloucester City Council,23UE,Members Support,DS002,Members Travel Expenses,3609,09/03/2017,08/03/2017,Trainline,London,GBR,1445,REDACTED,556*********3822,4112,PASSENGER RAILWAYS,81.91,Pound Sterling (826),1.000000000,81.91,Debit,85130087067709835662989,02/04/2017,GLOUCESTER CC
Gloucester City Council,23UE,NMS Contract,NE003,Public Transport - Staff,2402,14/03/2017,13/03/2017,Trainline,London,GBR,1445,REDACTED,556*********3822,4112,PASSENGER RAILWAYS,353.43,Pound Sterling (826),1.000000000,353.43,Debit,85130087072710990290759,02/04/2017,GLOUCESTER CC
Gloucester City Council,23UE,Members Support,DS002,Members Travel Expenses,3609,15/03/2017,14/03/2017,Trainline,London,GBR,1445,REDACTED,556*********3822,4112,PASSENGER RAILWAYS,177.48,Pound Sterling (826),1.000000000,177.48,Debit,85130087073710026460243,02/04/2017,GLOUCESTER CC
Gloucester City Council,23UE,Vehicles,CT002,Fuel - Vehicles/Plant,2102,15/03/2017,14/03/2017,TEXWESTGATESERVICE,887001GL12RS,,GL1 2RN,REDACTED,556*********3822,5541,SERVICE STATIONS,48,Pound Sterling (826),1.000000000,48,Debit,05230657074030074849619,02/04/2017,GLOUCESTER CC
Gloucester City Council,23UE,Members Support,DS002,Members Travel Expenses,3609,23/03/2017,21/03/2017,Trainline,London,GBR,1445,REDACTED,556*********3822,4112,PASSENGER RAILWAYS,177.48,Pound Sterling (826),1.000000000,177.48,Debit,85130087081711273299698,02/04/2017,GLOUCESTER CC
Gloucester City Council,23UE,Planning Policy & Heritage,PL004,Public Transport - Staff,2402,23/03/2017,22/03/2017,Trainline,London,GBR,1445,REDACTED,556*********3822,4112,PASSENGER RAILWAYS,148.41,Pound Sterling (826),1.000000000,148.41,Debit,85130087081711278922138,02/04/2017,GLOUCESTER CC
Gloucester City Council,23UE,Economic Development,ED001,Public Transport - Staff,2402,23/03/2017,22/03/2017,Trainline,London,GBR,1445,REDACTED,556*********3822,4112,PASSENGER RAILWAYS,74.97,Pound Sterling (826),1.000000000,74.97,Debit,85130087081711278922443,02/04/2017,GLOUCESTER CC
Gloucester City Council,23UE,Contact Centre,CT001,Stationery,3201,27/03/2017,24/03/2017,Amazon EU,AMAZON.CO.UK,LUX,L2338,REDACTED,556*********3822,5969,ALL OTHER DIRECT MARKETERS,60.53,Pound Sterling (826),1.000000000,60.53,Debit,55204727083000073242204,02/04/2017,GLOUCESTER CC
Gloucester City Council,23UE,Members Support,DS002,Members Travel Expenses,3609,28/03/2017,27/03/2017,Trainline,London,GBR,1445,REDACTED,556*********3822,4112,PASSENGER RAILWAYS,10.35,Pound Sterling (826),1.000000000,10.35,Debit,85130087086712438122507,02/04/2017,GLOUCESTER CC
Gloucester City Council,23UE,Gloucester Guildhall,GH001,Public Transport - Staff,2402,29/03/2017,28/03/2017,Trainline,London,GBR,1445,REDACTED,556*********3822,4112,PASSENGER RAILWAYS,90.88,Pound Sterling (826),1.000000000,90.88,Debit,85130087087712467608888,02/04/2017,GLOUCESTER CC
Gloucester City Council,23UE,Guildhall Events,GH002,General Supplies/Materials,3025,06/03/2017,04/03/2017,MERCURE GLOUCESTER,HOTEL 01452 6,,GL4 8ED,REDACTED,556*********8256,7011,"LODGING, HOTELS, MOTELS, RESORTS",86,Pound Sterling (826),1.000000000,86,Debit,05230657064830061509932,02/04/2017,GLOUCESTER CC
Gloucester City Council,23UE,Guildhall Events,GH002,General Supplies/Materials,3025,06/03/2017,04/03/2017,MERCURE GLOUCESTER,HOTEL 01452 6,,GL4 8ED,REDACTED,556*********8256,7011,"LODGING, HOTELS, MOTELS, RESORTS",86,Pound Sterling (826),1.000000000,86,Debit,05230657064840061509949,02/04/2017,GLOUCESTER CC
Gloucester City Council,23UE,Gloucester Guildhall,GH001,Equipment and Furniture,3001,07/03/2017,06/03/2017,Amazon UK Marketplace,800-279-6620,LUX,L2338,REDACTED,556*********8256,5942,BOOK STORES,198,Pound Sterling (826),1.000000000,198,Debit,55204727065000312324906,02/04/2017,GLOUCESTER CC
Gloucester City Council,23UE,Gloucester Guildhall,GH001,General Supplies/Materials,3025,08/03/2017,06/03/2017,GLOUCESTER CC,GLOUCESTER,GBR,GL1 2EQ,REDACTED,556*********8256,9399,GOVERNMENT SERVICES NOT ELSEWHERE CLASSIFIED,1,Pound Sterling (826),1.000000000,1,Debit,15425157067000024872437,02/04/2017,GLOUCESTER CC
Gloucester City Council,23UE,Gloucester Guildhall,GH001,General Supplies/Materials,3025,08/03/2017,06/03/2017,GLOUCESTER CC,GLOUCESTER,GBR,GL1 2EQ,REDACTED,556*********8256,9399,GOVERNMENT SERVICES NOT ELSEWHERE CLASSIFIED,-1,Pound Sterling (826),1.000000000,-1,Credit,15425157067000024872445,02/04/2017,GLOUCESTER CC
Gloucester City Council,23UE,Blackfriars,GH010,Equipment and Furniture,3001,09/03/2017,08/03/2017,PAYPAL *CCRRETAILEQ,35314369001,GBR,TW91EH,REDACTED,556*********8256,5943,"STATIONERY, OFFICE AND SCHOOL SUPPLY STO",277.2,Pound Sterling (826),1.000000000,277.2,Debit,85130087067709834912336,02/04/2017,GLOUCESTER CC
Gloucester City Council,23UE,Guildhall Events,GH002,General Supplies/Materials,3025,10/03/2017,09/03/2017,MIPERMIT PARKING-DOM,INTERNET,GBR,SN15 5FD,REDACTED,556*********8256,7523,AUTOMOBILE PARKING LOTS AND GARAGES,10,Pound Sterling (826),1.000000000,10,Debit,25425157069020105406886,02/04/2017,GLOUCESTER CC
Gloucester City Council,23UE,Blackfriars,GH010,Equipment and Furniture,3001,13/03/2017,10/03/2017,GLOBALCE.CO.UK,INTERNET,GBR,UNKNOWN,REDACTED,556*********8256,5200,HOME SUPPLY WAREHOUSE STORES,274.8,Pound Sterling (826),1.000000000,274.8,Debit,45424517070030267330395,02/04/2017,GLOUCESTER CC
Gloucester City Council,23UE,Guildhall Events,GH002,General Supplies/Materials,3025,13/03/2017,10/03/2017,MIPERMIT PARKING-DOM,INTERNET,GBR,SN15 5FD,REDACTED,556*********8256,7523,AUTOMOBILE PARKING LOTS AND GARAGES,10,Pound Sterling (826),1.000000000,10,Debit,25425157070030109693709,02/04/2017,GLOUCESTER CC
Gloucester City Council,23UE,Blackfriars,GH010,Advertising & Publicity,3404,13/03/2017,10/03/2017,WWW.INSTANTPRINT.C,01709 382202,,S63 5DR,REDACTED,556*********8256,7338,QUICK-COPY AND REPRODUCTION SERVICES,23.99,Pound Sterling (826),1.000000000,23.99,Debit,05230657070890070072613,02/04/2017,GLOUCESTER CC
Gloucester City Council,23UE,Blackfriars,GH010,Hospitality & Refreshments,3104,13/03/2017,11/03/2017,TESCO STORE 2581,GLOUCESTER,GBR,GL1 2SR,REDACTED,556*********8256,5411,"GROCERY STORES, SUPERMARKETS",34.32,Pound Sterling (826),1.000000000,34.32,Debit,15377757071030730769931,02/04/2017,GLOUCESTER CC
Gloucester City Council,23UE,Gloucester Guildhall,GH001,Equipment and Furniture,3001,13/03/2017,10/03/2017,SCREWFIX DIRECT,GLOUCESTER EA,,GL4 3SJ,REDACTED,556*********8256,5211,LUMBER AND BUILDING MATERIALS STORES,-88.04,Pound Sterling (826),1.000000000,-88.04,Credit,05230657070910072853115,02/04/2017,GLOUCESTER CC
Gloucester City Council,23UE,Gloucester Guildhall,GH001,External Training Course Fees,0550,14/03/2017,13/03/2017,WOWCHER,0203 699 5024,GBR,LE1 1ZP,REDACTED,556*********8256,5192,"BOOKS,PERIODICALS AND NEWSPAPERS",16,Pound Sterling (826),1.000000000,16,Debit,35425157073040162302722,02/04/2017,GLOUCESTER CC
Gloucester City Council,23UE,Guildhall Bar & Caf�,GH005,Equipment and Furniture,3001,17/03/2017,16/03/2017,WILKO RETAIL LIMIT,GLOUCESTER 14,,GL1 1SL,REDACTED,556*********8256,5722,HOUSEHOLD APPLIANCE STORES,36.05,Pound Sterling (826),1.000000000,36.05,Debit,05230657076820070664865,02/04/2017,GLOUCESTER CC
Gloucester City Council,23UE,Blackfriars,GH010,Advertising & Publicity,3404,17/03/2017,16/03/2017,WWW.INSTANTPRINT.C,01709 382202,,S63 5DR,REDACTED,556*********8256,7338,QUICK-COPY AND REPRODUCTION SERVICES,32,Pound Sterling (826),1.000000000,32,Debit,05230657076590076477030,02/04/2017,GLOUCESTER CC
Gloucester City Council,23UE,Guildhall Bar & Caf�,GH005,Equipment and Furniture,3001,20/03/2017,17/03/2017,SCREWFIX DIRECT,YEOVIL,,BA22 8RT,REDACTED,556*********8256,5211,LUMBER AND BUILDING MATERIALS STORES,14.65,Pound Sterling (826),1.000000000,14.65,Debit,05230657077960079781879,02/04/2017,GLOUCESTER CC
Gloucester City Council,23UE,Gloucester Guildhall,GH001,Equipment and Furniture,3001,20/03/2017,16/03/2017,CPC,Leeds,GBR,LS12 2NE,REDACTED,556*********8256,5065,ELECTRICAL PARTS AND EQUIPMENT,-69.9,Pound Sterling (826),1.000000000,-69.9,Credit,85130087076710105543965,02/04/2017,GLOUCESTER CC
Gloucester City Council,23UE,Guildhall Events,GH002,Advertising & Publicity,3404,21/03/2017,20/03/2017,FACEBK *YVEDLCAEX2,650-543-7818,IRL,UNKNOWN,REDACTED,556*********8256,7311,ADVERTISING SERVICES,16.69,Pound Sterling (826),1.000000000,16.69,Debit,55204727079000722468222,02/04/2017,GLOUCESTER CC
Gloucester City Council,23UE,Guildhall Events,GH002,Advertising & Publicity,3404,21/03/2017,20/03/2017,FACEBK *ZVEDLCAEX2,650-543-7818,IRL,UNKNOWN,REDACTED,556*********8256,7311,ADVERTISING SERVICES,3.32,Pound Sterling (826),1.000000000,3.32,Debit,55204727079000722468230,02/04/2017,GLOUCESTER CC
Gloucester City Council,23UE,Guildhall Events,GH002,General Supplies/Materials,3025,27/03/2017,24/03/2017,MIPERMIT PARKING-DOM,INTERNET,GBR,SN15 5FD,REDACTED,556*********8256,7523,AUTOMOBILE PARKING LOTS AND GARAGES,10,Pound Sterling (826),1.000000000,10,Debit,25425157084030113691602,02/04/2017,GLOUCESTER CC
Gloucester City Council,23UE,Guildhall Bar & Caf�,GH005,Equipment and Furniture,3001,27/03/2017,24/03/2017,WILKO RETAIL LIMIT,GLOUCESTER 14,,GL1 1SL,REDACTED,556*********8256,5722,HOUSEHOLD APPLIANCE STORES,18,Pound Sterling (826),1.000000000,18,Debit,05230657084190070857319,02/04/2017,GLOUCESTER CC
Gloucester City Council,23UE,Guildhall Events,GH002,Advertising & Publicity,3404,28/03/2017,27/03/2017,WWW.INSTANTPRINT.C,01709 382202,,S63 5DR,REDACTED,556*********8256,7338,QUICK-COPY AND REPRODUCTION SERVICES,23.99,Pound Sterling (826),1.000000000,23.99,Debit,05230657087440076841040,02/04/2017,GLOUCESTER CC
Gloucester City Council,23UE,Financial Services,FS004,Public Transport - Staff,2402,03/03/2017,02/03/2017,GWR WEBSALES,SWINDON,,SN1 1HL,REDACTED,556*********3063,4112,PASSENGER RAILWAYS,16.9,Pound Sterling (826),1.000000000,16.9,Debit,55504437061160342899637,02/04/2017,GLOUCESTER CC
Gloucester City Council,23UE,Business Transformation,BI006,"ICT Software, Licences & Support",3521,10/03/2017,09/03/2017,FIELDS ASSOCIATES LIMI,BRIDGEND,GBR,CF35 5LJ,REDACTED,556*********3063,7372,COMPUTER AND DATA PROCESSING SERVICES,510,Pound Sterling (826),1.000000000,510,Debit,35425157069020234613310,02/04/2017,GLOUCESTER CC
Gloucester City Council,23UE,Managing Director & Directors,MT001,ICT New Hardware,3523,13/03/2017,09/03/2017,WWW.PCWB.COM,BURY,GBR,BL9 7BJ,REDACTED,556*********3063,5734,COMPUTER SOFTWARE STORES,945.79,Pound Sterling (826),1.000000000,945.79,Debit,05377757071030394192025,02/04/2017,GLOUCESTER CC
Gloucester City Council,23UE,Civica Admin Charges,BI002,Professional Advice/Consultants Fees,3952,20/03/2017,17/03/2017,HMCOURTS-SERVICE.G,01452420100,,GL1 2ZG,REDACTED,556*********3063,9222,FINES,1815,Pound Sterling (826),1.000000000,1815,Debit,05230657077900072596007,02/04/2017,GLOUCESTER CC
Gloucester City Council,23UE,Business Transformation,BI006,ICT New Hardware,3523,22/03/2017,21/03/2017,Amazon UK Marketplace,800-279-6620,LUX,L2338,REDACTED,556*********3063,5942,BOOK STORES,24.95,Pound Sterling (826),1.000000000,24.95,Debit,55204727080000181284117,02/04/2017,GLOUCESTER CC
Gloucester City Council,23UE,Business Transformation,BI006,"ICT Software, Licences & Support",3521,22/03/2017,20/03/2017,FSPRG.COM DOLPHINACCES,COVENTRY,GBR,CV1 2FL,REDACTED,556*********3063,5734,COMPUTER SOFTWARE STORES,2196,Pound Sterling (826),1.000000000,2196,Debit,15276327081000229981653,02/04/2017,GLOUCESTER CC
Gloucester City Council,23UE,Elections,DS004,Professional Advice/Consultants Fees,3952,22/03/2017,21/03/2017,WWW.ICO.GOV.UK,03031231113 W,,SK9 5AF,REDACTED,556*********3063,9399,GOVERNMENT SERVICES NOT ELSEWHERE CLASSIFIED,500,Pound Sterling (826),1.000000000,500,Debit,05230657081150070048916,02/04/2017,GLOUCESTER CC
Gloucester City Council,23UE,Business Transformation,BI006,ICT New System Software,3522,23/03/2017,22/03/2017,DRI*Nuance,"Shannon, Co.",IRL,.,REDACTED,556*********3063,5734,COMPUTER SOFTWARE STORES,130.49,Pound Sterling (826),1.000000000,130.49,Debit,25481047082022344745311,02/04/2017,GLOUCESTER CC
Gloucester City Council,23UE,Vehicles,CT002,Hire of Vehicles/Plant,2301,23/03/2017,22/03/2017,ENTERPRISE,01452 419222,,GL2 5HY,REDACTED,556*********3063,3405,ENTERPRISE RENT-A-CAR,425.04,Pound Sterling (826),1.000000000,425.04,Debit,05230657082020078469829,02/04/2017,GLOUCESTER CC
Gloucester City Council,23UE,Vehicles,CT002,Hire of Vehicles/Plant,2301,23/03/2017,22/03/2017,ENTERPRISE,01452 419222,,GL2 5HY,REDACTED,556*********3063,3405,ENTERPRISE RENT-A-CAR,380.02,Pound Sterling (826),1.000000000,380.02,Debit,05230657082030078469836,02/04/2017,GLOUCESTER CC
Gloucester City Council,23UE,Business Transformation,BI006,"ICT Software, Licences & Support",3521,23/03/2017,22/03/2017,FSPRG.COM DOLPHINACCES,COVENTRY,GBR,CV1 2FL,REDACTED,556*********3063,5734,COMPUTER SOFTWARE STORES,-1002,Pound Sterling (826),1.000000000,-1002,Credit,15276327082002377870182,02/04/2017,GLOUCESTER CC
